[Event "Championnat du monde jeunes U10"]
[Date "2024.11.18"]
[White "Aguike, Toshiya"]
[Black "Fuentes de Nova, Sebastian"]
[WhiteElo "1716"]
[BlackElo "1929"]
[Round "4.22"]
[Result "1/2-1/2"]
[TimeControl "5400+30"]

1. e4 {[%clk 1:30:53]} 1... e5 {[%clk 1:30:34]} 2. Nf3 {[%clk 1:31:07]} 2... Nc6
{[%clk 1:31:01]} 3. Bc4 {[%clk 1:31:27]} 3... Bc5 {[%clk 1:31:14]} 4. c3 {[%clk
1:31:14]} 4... Nf6 {[%clk 1:31:34]} 5. d4 {[%clk 1:31:36]} 5... exd4 {[%clk
1:31:59]} 6. e5 {[%clk 1:31:57]} 6... d5 {[%clk 1:32:23]} 7. Bb5 {[%clk
1:32:21]} 7... Ne4 {[%clk 1:32:42]} 8. cxd4 {[%clk 1:32:45]} 8... Bb6 {[%clk
1:33:03]} 9. Be3 {[%clk 1:32:50]} 9... O-O {[%clk 1:32:47]} 10. Nc3 {[%clk
1:33:10]} 10... Bg4 {[%clk 1:32:39]} 11. h3 {[%clk 1:33:19]} 11... Bh5 {[%clk
1:32:56]} 12. Qc2 {[%clk 1:33:19]} 12... Bg6 {[%clk 1:28:45]} 13. Qb3 {[%clk
1:31:17]} 13... a6 {[%clk 1:22:44]} 14. Bxc6 {[%clk 1:27:38]} 14... bxc6 {[%clk
1:23:32]} 15. O-O {[%clk 1:28:05]} 15... Bh5 {[%clk 1:14:12]} 16. g4 {[%clk
1:01:34]} 16... Bg6 {[%clk 1:13:29]} 17. Rfd1 {[%clk 0:58:59]} 17... f5 {[%clk
1:11:36]} 18. Nxe4 {[%clk 0:55:58]} 18... fxe4 {[%clk 1:02:57]} 19. Nh2 {[%clk
0:54:13]} 19... Qh4 {[%clk 1:01:08]} 20. Kg2 {[%clk 0:54:11]} 20... Be8 {[%clk
0:52:17]} 21. Rh1 {[%clk 0:50:36]} 21... Bd7 {[%clk 0:50:45]} 22. Raf1 {[%clk
0:36:28]} 22... Rab8 {[%clk 0:36:29]} 23. Qd1 {[%clk 0:26:12]} 23... Ba7 {[%clk
0:34:19]} 24. b3 {[%clk 0:24:35]} 24... a5 {[%clk 0:34:05]} 25. f4 {[%clk
0:23:18]} 25... g6 {[%clk 0:30:52]} 26. Rf2 {[%clk 0:21:30]} 26... Rf7 {[%clk
0:24:36]} 27. Qd2 {[%clk 0:19:50]} 27... Bb6 {[%clk 0:24:23]} 28. f5 {[%clk
0:19:16]} 28... Qe7 {[%clk 0:22:40]} 29. e6 {[%clk 0:17:28]} 29... Bxe6 {[%clk
0:22:25]} 30. fxe6 {[%clk 0:17:44]} 30... Rxf2+ {[%clk 0:22:39]} 31. Qxf2 {[%clk
0:17:34]} 31... Rf8 {[%clk 0:22:40]} 32. Qg3 {[%clk 0:17:50]} 32... Qxe6 {[%clk
0:20:55]} 33. Rf1 {[%clk 0:16:53]} 33... Rxf1 {[%clk 0:17:18]} 34. Nxf1 {[%clk
0:16:39]} 34... Qf6 {[%clk 0:12:26]} 35. g5 {[%clk 0:15:43]} 35... Qg7 {[%clk
0:09:37]} 36. Qf2 {[%clk 0:15:36]} 36... Qf8 {[%clk 0:08:32]} 37. Nh2 {[%clk
0:14:14]} 37... Qxf2+ {[%clk 0:06:21]} 38. Kxf2 {[%clk 0:14:35]} 38... Kf7
{[%clk 0:06:16]} 39. Ng4 {[%clk 0:14:14]} 39... Ke6 {[%clk 0:06:31]} 40. Nf6
{[%clk 0:13:45]} 40... h5 {[%clk 0:03:46]} 41. Kg3 {[%clk 0:12:02]} 41... Ba7
{[%clk 0:03:11]} 42. Kf4 {[%clk 0:05:03]} 42... c5 43. dxc5 {[%clk 0:02:17]}
43... c6 {[%clk 0:01:20]} 44. Bd4 {[%clk 0:02:25]} 44... Bb8+ {[%clk 0:01:39]}
45. Ke3 {[%clk 0:02:42]} 45... Kf5 {[%clk 0:01:50]} 46. Nh7 {[%clk 0:02:28]}
46... Bf4+ {[%clk 0:01:43]} 47. Ke2 {[%clk 0:02:53]} 47... Bc7 {[%clk 0:01:31]}
48. a3 {[%clk 0:01:43]} 48... Kf4 {[%clk 0:01:26]} 49. Kf2 {[%clk 0:01:36]}
49... Kf5 {[%clk 0:01:02]} 50. b4 {[%clk 0:01:27]} 50... axb4 {[%clk 0:01:01]}
51. axb4 {[%clk 0:01:39]} 51... Bf4 {[%clk 0:01:07]} 52. Ke2 {[%clk 0:01:06]}
52... Bb8 {[%clk 0:01:16]} 53. Bf6 {[%clk 0:01:25]} 53... Kf4 {[%clk 0:01:28]}
54. Nf8 {[%clk 0:01:45]} 54... Kf5 {[%clk 0:00:38]} 55. Nd7 {[%clk 0:01:37]}
55... Bc7 {[%clk 0:01:01]} 56. Nb6 {[%clk 0:01:40]} 56... Ke6 {[%clk 0:00:34]}
57. Nc8 {[%clk 0:02:03]} 57... Bf4 {[%clk 0:00:32]} 58. Ne7 {[%clk 0:02:24]}
58... d4 {[%clk 0:00:55]} 59. Nxc6 {[%clk 0:02:14]} 59... d3+ {[%clk 0:01:13]}
60. Kd1 {[%clk 0:01:42]} 60... e3 {[%clk 0:01:18]} 61. Nd4+ {[%clk 0:01:58]}
61... Kd5 {[%clk 0:01:25]} 62. Nf3 {[%clk 0:00:46]} 62... Ke4 {[%clk 0:01:11]}
63. Nd4 {[%clk 0:00:35]} 63... Kd5 {[%clk 0:01:28]} 1/2-1/2

[Variant "Standard"]
[Site "Europe Echecs"]

[Event "Championnat du monde jeunes U10"]
[Date "2024.11.18"]
[White "Liu, Liam"]
[Black "Gim, Hajin"]
[WhiteElo "1783"]
[BlackElo "1603"]
[Round "4.32"]
[Result "1-0"]
[TimeControl "5400+30"]

1. e4 {[%clk 1:30:57]} 1... c5 {[%clk 1:30:56]} 2. c3 {[%clk 1:31:17]} 2... Nf6
{[%clk 1:31:21]} 3. e5 {[%clk 1:31:43]} 3... Nd5 {[%clk 1:31:45]} 4. d4 {[%clk
1:31:59]} 4... cxd4 {[%clk 1:32:10]} 5. cxd4 {[%clk 1:32:21]} 5... d6 {[%clk
1:32:33]} 6. Bc4 {[%clk 1:32:45]} 6... Nb6 {[%clk 1:32:49]} 7. Bb3 {[%clk
1:32:59]} 7... dxe5 {[%clk 1:33:12]} 8. Qh5 {[%clk 1:33:14]} 8... e6 {[%clk
1:32:51]} 9. dxe5 {[%clk 1:32:23]} 9... Nc6 {[%clk 1:32:47]} 10. Nc3 {[%clk
1:31:33]} 10... Bb4 {[%clk 1:32:42]} 11. Ne2 {[%clk 1:30:00]} 11... Qc7 {[%clk
1:29:04]} 12. Bf4 {[%clk 1:27:32]} 12... Bd7 {[%clk 1:27:56]} 13. O-O {[%clk
1:27:43]} 13... Qd8 {[%clk 1:25:20]} 14. a3 {[%clk 1:27:19]} 14... Bxc3 {[%clk
1:23:08]} 15. Nxc3 {[%clk 1:27:37]} 15... O-O {[%clk 1:16:40]} 16. Bc2 {[%clk
1:26:02]} 16... g6 {[%clk 1:11:31]} 17. Qh6 {[%clk 1:25:35]} 17... f6 {[%clk
1:05:45]} 18. Rad1 {[%clk 1:17:27]} 18... Qe7 {[%clk 1:05:32]} 19. exf6 {[%clk
1:17:07]} 19... Qxf6 {[%clk 1:05:41]} 20. Bg5 {[%clk 1:16:29]} 20... Qg7 {[%clk
1:05:51]} 21. Qh4 {[%clk 1:16:44]} 21... Ne5 {[%clk 1:01:40]} 22. Ne4 {[%clk
1:15:37]} 22... Nd5 {[%clk 1:00:16]} 23. Rxd5 {[%clk 1:05:58]} 23... exd5 {[%clk
1:00:31]} 24. Bf6 {[%clk 1:05:25]} 24... Rxf6 {[%clk 0:57:42]} 25. Nxf6+ {[%clk
1:05:37]} 25... Kh8 {[%clk 0:57:04]} 26. Nxd5 {[%clk 1:05:02]} 26... Bc6 {[%clk
0:56:49]} 27. Ne3 {[%clk 1:05:02]} 27... b6 {[%clk 0:54:11]} 28. Rd1 {[%clk
1:04:53]} 28... Nf7 {[%clk 0:51:07]} 29. Qd4 {[%clk 1:03:19]} 29... Qxd4 {[%clk
0:51:08]} 30. Rxd4 {[%clk 1:03:43]} 30... Rd8 {[%clk 0:51:18]} 31. Rxd8+ {[%clk
1:03:58]} 31... Nxd8 {[%clk 0:51:39]} 32. Bb3 {[%clk 1:04:06]} 32... Nb7 {[%clk
0:51:38]} 33. Bd5 {[%clk 1:04:07]} 33... Bxd5 {[%clk 0:51:40]} 34. Nxd5 {[%clk
1:04:33]} 34... Kg7 {[%clk 0:51:57]} 35. Kf1 {[%clk 1:04:53]} 35... Kf7 {[%clk
0:52:17]} 36. f4 {[%clk 1:05:07]} 36... Ke6 {[%clk 0:52:31]} 37. Ne3 {[%clk
1:05:33]} 37... Nc5 {[%clk 0:52:18]} 38. Ke2 {[%clk 1:05:51]} 38... Kf6 {[%clk
0:51:32]} 39. g3 {[%clk 1:05:10]} 39... a5 {[%clk 0:51:16]} 40. Nd5+ {[%clk
1:04:49]} 40... Kf5 {[%clk 0:51:37]} 41. Nxb6 {[%clk 1:04:57]} 41... Kg4 {[%clk
0:51:55]} 42. Nc4 {[%clk 1:04:34]} 42... a4 {[%clk 0:51:54]} 43. Kf2 {[%clk
1:04:56]} 43... Kh3 {[%clk 0:51:58]} 44. Kg1 {[%clk 1:05:19]} 44... Nd3 {[%clk
0:51:24]} 45. Kf1 {[%clk 1:04:52]} 45... Kxh2 {[%clk 0:51:35]} 46. Ke2 {[%clk
1:05:18]} 46... Nc5 {[%clk 0:51:43]} 47. Kf3 {[%clk 1:05:41]} 47... h5 {[%clk
0:51:29]} 48. Ne5 {[%clk 1:03:24]} 48... Kh3 {[%clk 0:51:25]} 49. Nxg6 {[%clk
1:03:16]} 49... Nd3 {[%clk 0:51:41]} 50. f5 {[%clk 1:03:40]} 50... Nxb2 {[%clk
0:52:03]} 51. f6 {[%clk 1:04:05]} 51... h4 {[%clk 0:52:17]} 52. gxh4 {[%clk
1:04:15]} 1-0

[Variant "Standard"]
[Site "Europe Echecs"]

[Event "Championnat du monde jeunes U10"]
[Date "2024.11.18"]
[White "Gusev, Daniil Den"]
[Black "Lenkov, Stanislav"]
[WhiteElo "1863"]
[BlackElo "1693"]
[Round "4.36"]
[Result "1-0"]
[TimeControl "5400+30"]

1. e4 {[%clk 1:30:59]} 1... c5 {[%clk 1:30:37]} 2. Nf3 {[%clk 1:31:12]} 2... a6
{[%clk 1:30:43]} 3. Nc3 {[%clk 1:30:59]} 3... b5 {[%clk 1:30:05]} 4. d4 {[%clk
1:30:44]} 4... cxd4 {[%clk 1:29:23]} 5. Nxd4 {[%clk 1:29:48]} 5... e6 {[%clk
1:29:15]} 6. g3 {[%clk 1:28:50]} 6... Bb7 {[%clk 1:28:22]} 7. Bg2 {[%clk
1:28:46]} 7... Nf6 {[%clk 1:27:57]} 8. a3 {[%clk 1:25:06]} 8... Nc6 {[%clk
1:22:49]} 9. e5 {[%clk 1:21:13]} 9... Qb6 {[%clk 1:18:10]} 10. Nxc6 {[%clk
1:17:10]} 10... Bxc6 {[%clk 1:18:26]} 11. Bxc6 {[%clk 1:17:03]} 11... Qxc6
{[%clk 1:18:52]} 12. O-O {[%clk 1:17:08]} 12... Ne4 {[%clk 1:18:27]} 13. Nxe4
{[%clk 1:15:44]} 13... Qxe4 {[%clk 1:17:20]} 14. Re1 {[%clk 1:14:54]} 14... Qc6
{[%clk 1:16:26]} 15. Bf4 {[%clk 1:08:58]} 15... Bc5 {[%clk 1:14:24]} 16. Qg4
{[%clk 1:06:56]} 16... Kf8 {[%clk 1:11:21]} 17. Rad1 {[%clk 1:05:34]} 17... h5
{[%clk 1:09:32]} 18. Qh3 {[%clk 1:00:24]} 18... Qf3 {[%clk 1:07:24]} 19. Qg2
{[%clk 1:00:40]} 19... Qxg2+ {[%clk 1:06:50]} 20. Kxg2 {[%clk 1:00:32]} 20...
Ke7 {[%clk 1:06:32]} 21. Rd3 {[%clk 0:57:03]} 21... a5 {[%clk 1:04:32]} 22. Red1
{[%clk 0:56:31]} 22... Rhd8 {[%clk 1:02:49]} 23. h4 {[%clk 0:52:21]} 23... Ra6
{[%clk 1:00:15]} 24. Rc3 {[%clk 0:50:14]} 24... Rc6 {[%clk 0:57:32]} 25. b4
{[%clk 0:49:21]} 25... axb4 {[%clk 0:54:13]} 26. axb4 {[%clk 0:49:27]} 26... Bb6
{[%clk 0:53:29]} 27. Rxc6 {[%clk 0:44:06]} 27... dxc6 {[%clk 0:53:44]} 28. Ra1
{[%clk 0:30:21]} 28... Bd4 {[%clk 0:50:47]} 29. Ra6 {[%clk 0:30:44]} 29... Kd7
{[%clk 0:46:31]} 30. Ra3 {[%clk 0:24:22]} 30... Kc7 {[%clk 0:44:20]} 31. Rd3
{[%clk 0:19:02]} 31... Bb2 {[%clk 0:41:36]} 32. Rb3 {[%clk 0:16:53]} 32... Bd4
{[%clk 0:41:33]} 33. Kf3 {[%clk 0:17:12]} 33... Rd5 {[%clk 0:41:39]} 34. Rd3
{[%clk 0:16:05]} 34... Bb2 {[%clk 0:36:52]} 35. Ke4 {[%clk 0:10:54]} 35... Rxd3
{[%clk 0:32:42]} 36. Kxd3 {[%clk 0:11:06]} 36... c5 {[%clk 0:33:01]} 37. c4
{[%clk 0:08:22]} 37... Kc6 {[%clk 0:26:22]} 38. cxb5+ {[%clk 0:07:57]} 38...
Kxb5 {[%clk 0:26:30]} 39. bxc5 {[%clk 0:08:20]} 39... Kxc5 {[%clk 0:26:44]} 40.
Ke4 {[%clk 0:08:47]} 40... Bd4 {[%clk 0:26:09]} 41. f3 {[%clk 0:05:44]} 41...
Bf2 {[%clk 0:25:32]} 42. Be3+ {[%clk 0:06:04]} 42... Bxe3 {[%clk 0:25:40]} 43.
Kxe3 {[%clk 0:06:31]} 43... Kd5 {[%clk 0:18:52]} 44. Kf4 {[%clk 0:06:50]} 44...
Kd4 {[%clk 0:16:37]} 45. g4 {[%clk 0:06:50]} 45... g5+ {[%clk 0:08:11]} 46. Kxg5
{[%clk 0:07:02]} 46... hxg4 {[%clk 0:08:25]} 47. fxg4 {[%clk 0:07:24]} 47...
Kxe5 {[%clk 0:07:53]} 48. h5 {[%clk 0:07:49]} 48... f5 {[%clk 0:07:50]} 49. gxf5
{[%clk 0:07:31]} 49... exf5 {[%clk 0:08:16]} 50. h6 {[%clk 0:07:57]} 50... f4
{[%clk 0:08:27]} 51. h7 {[%clk 0:08:25]} 51... f3 {[%clk 0:08:35]} 52. h8=Q+
{[%clk 0:08:48]} 52... Ke4 {[%clk 0:08:49]} 53. Qh3 {[%clk 0:09:14]} 53... Ke5
1-0

[Variant "Standard"]
[Site "Europe Echecs"]

[Event "Championnat du monde jeunes U10"]
[Date "2024.11.18"]
[White "Blekh, Erik"]
[Black "Hochman, Gur"]
[WhiteElo "1790"]
[BlackElo "1626"]
[Round "4.43"]
[Result "1-0"]
[TimeControl "5400+30"]

1. Nf3 {[%clk 1:30:56]} 1... f5 {[%clk 1:30:51]} 2. d3 {[%clk 1:30:17]} 2... Nc6
{[%clk 1:31:09]} 3. e4 {[%clk 1:28:09]} 3... e5 {[%clk 1:31:16]} 4. Nc3 {[%clk
1:26:34]} 4... Nf6 {[%clk 1:27:31]} 5. g3 {[%clk 1:24:58]} 5... Bb4 {[%clk
1:26:51]} 6. Bd2 {[%clk 1:19:21]} 6... d6 {[%clk 1:22:19]} 7. Qe2 {[%clk
1:16:56]} 7... O-O {[%clk 1:08:24]} 8. Bg2 {[%clk 1:15:02]} 8... fxe4 {[%clk
1:06:00]} 9. Nxe4 {[%clk 1:11:29]} 9... Nxe4 {[%clk 1:02:20]} 10. dxe4 {[%clk
1:11:27]} 10... Bxd2+ {[%clk 0:54:45]} 11. Nxd2 {[%clk 1:10:35]} 11... Nd4
{[%clk 0:54:06]} 12. Qd3 {[%clk 1:10:18]} 12... Qf6 {[%clk 0:52:54]} 13. O-O
{[%clk 1:08:53]} 13... Be6 {[%clk 0:46:16]} 14. f4 {[%clk 1:01:58]} 14... Qe7
{[%clk 0:42:54]} 15. c3 {[%clk 1:00:13]} 15... Nc6 {[%clk 0:42:58]} 16. f5
{[%clk 1:00:17]} 16... Bc8 {[%clk 0:41:36]} 17. Nf3 {[%clk 0:59:31]} 17... Rd8
{[%clk 0:38:28]} 18. Rae1 {[%clk 0:56:23]} 18... Kh8 {[%clk 0:36:26]} 19. g4
{[%clk 0:54:31]} 19... Rf8 {[%clk 0:33:40]} 20. g5 {[%clk 0:52:39]} 20... Bd7
{[%clk 0:31:24]} 21. h4 {[%clk 0:52:12]} 21... h6 {[%clk 0:30:06]} 22. Qd2
{[%clk 0:50:30]} 22... Kh7 {[%clk 0:29:55]} 23. Rf2 {[%clk 0:49:04]} 23... Be8
{[%clk 0:24:59]} 24. Nh2 {[%clk 0:47:49]} 24... Bh5 {[%clk 0:21:43]} 25. Ref1
{[%clk 0:46:41]} 25... Nd8 {[%clk 0:19:28]} 26. Bf3 {[%clk 0:45:30]} 26... Be8
{[%clk 0:16:45]} 27. Ng4 {[%clk 0:42:15]} 27... h5 {[%clk 0:16:08]} 28. Ne3
{[%clk 0:42:09]} 28... c6 {[%clk 0:14:13]} 29. Qd1 {[%clk 0:41:10]} 29... Rh8
1-0

[Variant "Standard"]
[Site "Europe Echecs"]

[Event "Championnat du monde jeunes U10"]
[Date "2024.11.18"]
[White "Skouroupathis, Kyriakos"]
[Black "Thorulsley, Kairaav"]
[WhiteElo "1695"]
[BlackElo "1520"]
[Round "4.13"]
[Result "1-0"]
[TimeControl "5400+30"]

1. e4 {[%clk 1:30:57]} 1... c5 {[%clk 1:30:57]} 2. Nf3 {[%clk 1:31:17]} 2... d6
{[%clk 1:31:23]} 3. Bb5+ {[%clk 1:31:42]} 3... Nd7 {[%clk 1:31:21]} 4. c3 {[%clk
1:31:51]} 4... e6 {[%clk 1:28:42]} 5. O-O {[%clk 1:31:29]} 5... Be7 {[%clk
1:28:20]} 6. d4 {[%clk 1:30:12]} 6... cxd4 {[%clk 1:28:14]} 7. cxd4 {[%clk
1:30:34]} 7... Nf6 {[%clk 1:27:11]} 8. Nc3 {[%clk 1:30:01]} 8... O-O {[%clk
1:27:25]} 9. Bg5 {[%clk 1:28:40]} 9... a6 {[%clk 1:26:57]} 10. Bd3 {[%clk
1:23:22]} 10... h6 {[%clk 1:23:39]} 11. Bf4 {[%clk 1:21:22]} 11... Nh5 {[%clk
1:12:15]} 12. Be3 {[%clk 1:14:23]} 12... Nhf6 {[%clk 1:09:18]} 13. h3 {[%clk
1:07:49]} 13... b5 {[%clk 1:07:33]} 14. e5 {[%clk 1:00:55]} 14... dxe5 {[%clk
1:06:00]} 15. dxe5 {[%clk 1:00:35]} 15... Nd5 {[%clk 1:05:13]} 16. Nxd5 {[%clk
1:00:57]} 16... exd5 {[%clk 1:05:30]} 17. Bc2 {[%clk 0:58:57]} 17... Bb7 {[%clk
1:04:54]} 18. Bb3 {[%clk 0:58:41]} 18... Nb6 {[%clk 1:04:39]} 19. Qd3 {[%clk
0:56:29]} 19... Nc4 {[%clk 0:50:35]} 20. Bc2 {[%clk 0:55:18]} 20... f5 {[%clk
0:50:54]} 21. exf6 {[%clk 0:55:40]} 21... Rxf6 {[%clk 0:51:15]} 22. Qh7+ {[%clk
0:54:12]} 22... Kf7 {[%clk 0:51:37]} 23. Bd4 {[%clk 0:54:35]} 23... Qh8 {[%clk
0:50:08]} 24. Qxh8 {[%clk 0:51:42]} 24... Rxh8 {[%clk 0:50:31]} 25. Bxf6 {[%clk
0:51:11]} 25... Bxf6 {[%clk 0:50:56]} 26. Bb3 {[%clk 0:47:05]} 26... Nxb2 {[%clk
0:45:12]} 27. Rab1 {[%clk 0:41:32]} 27... Nc4 {[%clk 0:45:32]} 28. a4 {[%clk
0:39:33]} 28... Bc6 {[%clk 0:44:33]} 29. axb5 {[%clk 0:38:29]} 29... axb5 {[%clk
0:44:53]} 30. Rfd1 {[%clk 0:33:51]} 30... Rd8 {[%clk 0:34:05]} 31. Nd4 {[%clk
0:32:24]} 31... Bxd4 {[%clk 0:34:09]} 32. Rxd4 {[%clk 0:32:51]} 32... Rd7 {[%clk
0:24:00]} 33. Re1 {[%clk 0:29:53]} 33... g6 {[%clk 0:21:18]} 34. f4 {[%clk
0:28:03]} 34... Kf6 {[%clk 0:19:53]} 35. g4 {[%clk 0:25:37]} 35... Bb7 {[%clk
0:16:42]} 36. Kf2 {[%clk 0:22:03]} 36... Bc6 {[%clk 0:15:52]} 37. Kf3 {[%clk
0:18:50]} 37... Rd6 {[%clk 0:12:34]} 38. h4 {[%clk 0:14:37]} 38... Bb7 {[%clk
0:06:03]} 39. g5+ {[%clk 0:12:07]} 39... hxg5 {[%clk 0:06:00]} 40. fxg5+ {[%clk
0:12:30]} 40... Kf5 {[%clk 0:04:57]} 41. Rf4# {[%clk 0:12:27]} 1-0

[Variant "Standard"]
[Site "Europe Echecs"]

[Event "Championnat du monde jeunes U10"]
[Date "2024.11.19"]
[White "Sameh Mohamed, Abdalrahman"]
[Black "Advik Amit Agrawal"]
[WhiteElo "2238"]
[BlackElo "1982"]
[Round "5.1"]
[Result "1/2-1/2"]
[TimeControl "5400+30"]

1. e4 {[%clk 1:30:54]} 1... e6 {[%clk 1:30:17]} 2. b3 {[%clk 1:31:19]} 2... d5
{[%clk 1:30:39]} 3. Bb2 {[%clk 1:31:44]} 3... Nc6 {[%clk 1:30:51]} 4. e5 {[%clk
1:31:50]} 4... d4 5. f4 {[%clk 1:32:08]} 5... Nge7 {[%clk 1:29:48]} 6. Nf3
{[%clk 1:32:29]} 6... Nd5 {[%clk 1:29:32]} 7. g3 {[%clk 1:32:40]} 7... Bc5
{[%clk 1:28:49]} 8. c4 {[%clk 1:30:41]} 8... dxc3 9. Nxc3 {[%clk 1:30:49]} 9...
Ndb4 {[%clk 1:24:14]} 10. Ne4 {[%clk 1:30:46]} 10... Bb6 {[%clk 1:22:04]} 11.
Qb1 {[%clk 1:26:25]} 11... Nd4 {[%clk 1:16:21]} 12. Nxd4 {[%clk 1:26:35]} 12...
Bxd4 {[%clk 1:16:35]} 13. Bc3 {[%clk 1:26:58]} 13... Nc6 {[%clk 1:14:45]} 14.
Bg2 {[%clk 1:25:58]} 14... Bb6 {[%clk 1:10:21]} 15. Qc2 {[%clk 1:17:23]} 15...
Qe7 {[%clk 1:00:38]} 16. Rd1 {[%clk 1:02:59]} 16... Bd7 {[%clk 0:55:36]} 17. d4
{[%clk 1:02:14]} 17... Nb4 {[%clk 0:54:59]} 18. Bxb4 {[%clk 1:01:06]} 18...
Qxb4+ {[%clk 0:55:17]} 19. Qd2 {[%clk 1:01:24]} 19... Qxd2+ {[%clk 0:51:03]} 20.
Nxd2 {[%clk 1:01:47]} 20... Bxd4 {[%clk 0:51:16]} 21. Bxb7 {[%clk 1:02:09]}
21... Rb8 {[%clk 0:50:28]} 22. Be4 {[%clk 1:01:46]} 22... Ke7 {[%clk 0:49:05]}
23. Nf3 {[%clk 1:01:38]} 23... Bb6 {[%clk 0:46:39]} 24. Kf1 {[%clk 0:57:02]}
24... Bb5+ {[%clk 0:45:09]} 25. Kg2 {[%clk 0:57:26]} 25... Rhd8 {[%clk 0:45:11]}
26. Rc1 {[%clk 0:57:05]} 26... a5 {[%clk 0:43:52]} 27. Bc6 {[%clk 0:57:21]}
27... Be2 {[%clk 0:42:31]} 28. Rc2 {[%clk 0:56:55]} 28... Bd1 29. Rb2 {[%clk
0:52:39]} 29... Bc5 {[%clk 0:37:30]} 30. Re1 {[%clk 0:46:14]} 30... Bb4 {[%clk
0:34:34]} 31. Re4 {[%clk 0:41:41]} 31... Ba3 {[%clk 0:27:32]} 32. Rf2 {[%clk
0:41:49]} 32... Bc5 {[%clk 0:27:52]} 33. Rf1 {[%clk 0:40:13]} 33... Bxf3+ {[%clk
0:24:52]} 34. Kxf3 {[%clk 0:40:23]} 34... Rd3+ {[%clk 0:25:08]} 35. Kg4 {[%clk
0:40:40]} 35... Rd2 {[%clk 0:24:55]} 36. h4 {[%clk 0:31:53]} 36... Rxa2 {[%clk
0:20:21]} 37. Rd1 {[%clk 0:31:58]} 37... Rd8 {[%clk 0:20:43]} 38. Rxd8 {[%clk
0:32:17]} 38... Kxd8 {[%clk 0:21:04]} 39. Ra4 {[%clk 0:32:20]} 39... Rxa4 {[%clk
0:21:18]} 40. bxa4 {[%clk 0:32:42]} 40... Ke7 {[%clk 0:20:39]} 41. Kf3 {[%clk
0:32:54]} 41... h5 {[%clk 0:20:46]} 42. Ke2 {[%clk 0:31:36]} 42... g6 {[%clk
0:20:57]} 43. Kf3 {[%clk 0:31:51]} 43... Bb6 {[%clk 0:21:02]} 44. Ke4 1/2-1/2

[Variant "Standard"]
[Site "Europe Echecs"]

[Event "Championnat du monde jeunes U10"]
[Date "2024.11.19"]
[White "Anand, Tsogtbileg"]
[Black "Shogdzhiev, Roman"]
[WhiteElo "1974"]
[BlackElo "2202"]
[Round "5.2"]
[Result "0-1"]
[TimeControl "5400+30"]

1. e4 {[%clk 1:30:30]} 1... c5 {[%clk 1:30:55]} 2. Nf3 {[%clk 1:30:31]} 2... d6
{[%clk 1:31:20]} 3. d4 {[%clk 1:30:23]} 3... cxd4 {[%clk 1:31:42]} 4. Nxd4
{[%clk 1:30:40]} 4... Nf6 {[%clk 1:32:07]} 5. f3 {[%clk 1:30:26]} 5... Nc6
{[%clk 1:32:25]} 6. c4 {[%clk 1:30:17]} 6... e6 {[%clk 1:31:33]} 7. Nc3 {[%clk
1:27:46]} 7... Be7 {[%clk 1:31:55]} 8. Be3 {[%clk 1:27:40]} 8... O-O {[%clk
1:32:10]} 9. Qd2 {[%clk 1:27:41]} 9... d5 {[%clk 1:28:50]} 10. exd5 {[%clk
1:25:32]} 10... exd5 {[%clk 1:29:11]} 11. Nxc6 {[%clk 1:25:48]} 11... bxc6
{[%clk 1:29:41]} 12. cxd5 {[%clk 1:26:08]} 12... Nxd5 {[%clk 1:30:08]} 13. Nxd5
{[%clk 1:26:00]} 13... cxd5 {[%clk 1:30:12]} 14. Be2 {[%clk 1:23:44]} 14... Bh4+
{[%clk 1:23:40]} 15. g3 {[%clk 1:23:33]} 15... Bf6 {[%clk 1:24:01]} 16. Rd1
{[%clk 1:19:42]} 16... Re8 {[%clk 1:21:08]} 17. Kf2 {[%clk 1:18:45]} 17... Be6
{[%clk 1:17:55]} 18. Bd4 {[%clk 1:08:24]} 18... Rb8 {[%clk 1:11:42]} 19. Rhe1
{[%clk 1:04:37]} 19... Bxd4+ {[%clk 1:02:15]} 20. Qxd4 {[%clk 1:04:02]} 20... a5
{[%clk 1:01:49]} 21. a3 {[%clk 1:00:50]} 21... Qb6 {[%clk 0:58:51]} 22. Qxb6
{[%clk 0:59:38]} 22... Rxb6 {[%clk 0:59:20]} 23. Rd2 {[%clk 0:59:56]} 23... Reb8
{[%clk 0:56:33]} 24. Rb1 {[%clk 0:59:48]} 24... Rb3 {[%clk 0:54:21]} 25. Rc1
{[%clk 0:51:34]} 25... Rxb2 {[%clk 0:46:55]} 26. Rxb2 {[%clk 0:51:58]} 26...
Rxb2 {[%clk 0:47:19]} 27. Rc5 {[%clk 0:52:18]} 27... Kf8 {[%clk 0:46:24]} 28.
Rxa5 {[%clk 0:51:38]} 28... Ke7 {[%clk 0:46:26]} 29. a4 {[%clk 0:48:22]} 29...
Kd6 {[%clk 0:39:07]} 30. Ke3 {[%clk 0:46:13]} 30... g6 {[%clk 0:34:58]} 31. g4
{[%clk 0:43:41]} 31... g5 {[%clk 0:34:59]} 32. Rb5 {[%clk 0:34:43]} 32... Ra2
{[%clk 0:34:58]} 33. a5 {[%clk 0:33:03]} 33... Bd7 {[%clk 0:35:18]} 34. Rb7
{[%clk 0:21:31]} 34... Rxa5 {[%clk 0:31:38]} 35. Bd3 {[%clk 0:21:08]} 35... Ra3
{[%clk 0:31:38]} 36. Kd4 {[%clk 0:17:38]} 36... Ra4+ {[%clk 0:31:44]} 37. Kc3
{[%clk 0:17:35]} 37... Be6 {[%clk 0:31:43]} 38. Rb2 {[%clk 0:13:07]} 38... Ke5
{[%clk 0:28:59]} 39. h4 {[%clk 0:13:17]} 39... gxh4 {[%clk 0:29:14]} 40. Bxh7
{[%clk 0:13:11]} 40... Ra3+ {[%clk 0:29:15]} 41. Kb4 {[%clk 0:13:29]} 41... Rxf3
{[%clk 0:29:38]} 42. Rh2 Rf4+ {[%clk 0:29:57]} 0-1

[Variant "Standard"]
[Site "Europe Echecs"]